fUST/lending_fUST_20250506
["ID","MTS","AMOUNT","RATE_DAILY","PERIOD"]
[360048507,1746518176544,-500.0,0.00012011,2]
[360048508,1746518176567,-650.0,0.00012011,2]
[360048509,1746518176596,-500.0,0.00012011,2]
[360048510,1746518176619,-500.0,0.00012011,2]
[360048511,1746518176641,-182.59148236,0.00012011,2]
[360048512,1746518176665,-310.70168498,0.00012011,2]
[360048515,1746518240031,-300.0,0.0001201,2]
[360048516,1746518240053,-10700.0,0.00012011,2]
[360048517,1746518311766,-300.0,0.00012009,2]
[360048518,1746518311804,-500.0,0.0001201,2]
[360048519,1746518311838,-500.0,0.0001201,2]
[360048520,1746518311874,-500.0,0.0001201,2]
[360048521,1746518311908,-500.0,0.0001201,2]
[360048522,1746518311942,-650.0,0.0001201,2]
[360048523,1746518311967,-2050.0,0.00012011,2]
[360048524,1746518366302,5000.0,0.00021,10]
[360048526,1746518414646,-300.0,0.00012007,2]
[360048527,1746518414672,-300.0,0.00012007,2]
[360048528,1746518414695,-19400.0,0.00012008,2]
[360048536,1746518672380,-1146.44091101,0.00011677,2]
[360048538,1746518695168,-1146.44091101,0.00011677,2]
[360048540,1746518732241,-300.0,0.00011676,2]
[360048541,1746518732283,-300.0,0.00011676,2]
[360048542,1746518732326,-546.44091101,0.00011677,2]
[360048543,1746518732765,-300.0,0.00011677,2]
[360048546,1746518798127,-300.0,0.00011676,2]
[360048547,1746518798151,-13864.82405545,0.00011677,2]
[360048548,1746518876599,-300.0,0.00011675,2]
[360048549,1746518876639,-500.0,0.00011676,2]
[360048550,1746518876677,-17.07750107,0.00011676,2]
[360048551,1746518883298,-265.00542295,0.00011675,2]
[360048552,1746518886913,-34.99457705,0.00011675,2]
[360048553,1746518886957,-165.00542295,0.00011676,2]
[360048554,1746518894896,-152.44023618,0.00011676,2]
[360048557,1746518937006,669.5,0.000102,2]
[360048597,1746519032031,-300.0,0.00011674,2]
[360048598,1746519032042,-294.0,0.00011674,2]
[360048599,1746519032051,-2746.27746623,0.00011675,2]
[360048600,1746519032063,-359.3437208,0.00011675,2]
[360048601,1746519032076,-12342.45615509,0.00011675,2]
[360048602,1746519032097,-8689.09988623,0.00011675,2]
[360048603,1746519032157,-595.7910743,0.00011675,2]
[360048992,1746519043267,-25267.03169735,0.00011675,2]
[360048995,1746519043277,-500.0,0.00011675,2]
[360048997,1746519043286,-305.93351885,0.00011675,2]
[360048999,1746519043295,-317.60901243,0.00011675,2]
[360049000,1746519043305,-500.0,0.00011675,2]
[360049002,1746519043314,-359.07246533,0.00011675,2]
[360049005,1746519043324,-500.0,0.00011675,2]
[360049006,1746519043334,-385.6672634,0.00011675,2]
[360049009,1746519043343,-500.0,0.00011675,2]
[360049011,1746519043352,-500.0,0.00011675,2]
[360049013,1746519043362,-500.0,0.00011675,2]
[360049015,1746519043370,-500.0,0.00011675,2]
[360049017,1746519043380,-334.57683202,0.00011675,2]
[360049018,1746519043389,-500.0,0.00011675,2]
[360049021,1746519043398,-500.0,0.00011675,2]
[360049023,1746519043407,-500.0,0.00011675,2]
[360049025,1746519043417,-500.0,0.00011675,2]
[360049028,1746519043427,-500.0,0.00011675,2]
[360049031,1746519043436,-500.0,0.00011675,2]
[360049034,1746519043446,-500.0,0.00011675,2]
[360049037,1746519043456,-500.0,0.00011675,2]
[360049040,1746519043465,-500.0,0.00011675,2]
[360049043,1746519043475,-500.0,0.00011675,2]
[360049046,1746519043484,-500.0,0.00011675,2]
[360049048,1746519043493,-500.0,0.00011675,2]
[360049050,1746519043503,-500.0,0.00011675,2]
[360049052,1746519043512,-500.0,0.00011675,2]
[360049054,1746519043521,-500.0,0.00011675,2]
[360049056,1746519043530,-500.0,0.00011675,2]
[360049058,1746519043539,-500.0,0.00011675,2]
[360049060,1746519043549,-500.0,0.00011675,2]
[360049062,1746519043558,-500.0,0.00011675,2]
[360049064,1746519043567,-500.0,0.00011675,2]
[360049066,1746519043576,-500.0,0.00011675,2]
[360049068,1746519043586,-500.0,0.00011675,2]
[360049070,1746519043595,-500.0,0.00011675,2]
[360049072,1746519043604,-500.0,0.00011675,2]
[360049074,1746519043613,-500.0,0.00011675,2]
[360049076,1746519043622,-500.0,0.00011675,2]
[360049078,1746519043631,-271.00045673,0.00011675,2]
[360049080,1746519043640,-500.0,0.00011675,2]
[360049082,1746519043649,-500.0,0.00011675,2]
[360049084,1746519043659,-500.0,0.00011675,2]
[360049086,1746519043668,-500.0,0.00011675,2]
[360049088,1746519043678,-500.0,0.00011675,2]
[360049090,1746519043687,-500.0,0.00011675,2]
[360049092,1746519043696,-500.0,0.00011675,2]
[360049094,1746519043706,-500.0,0.00011675,2]
[360049096,1746519043715,-500.0,0.00011675,2]
[360049098,1746519043724,-500.0,0.00011675,2]
[360049100,1746519043733,-500.0,0.00011675,2]
[360049102,1746519043742,-500.0,0.00011675,2]
[360049104,1746519043751,-500.0,0.00011675,2]
[360049106,1746519043761,-500.0,0.00011675,2]
[360049108,1746519043770,-500.0,0.00011675,2]
[360049110,1746519043779,-173.88987233,0.00011675,2]
[360049112,1746519043788,-500.0,0.00011675,2]
[360049114,1746519043797,-500.0,0.00011675,2]
[360049116,1746519043806,-500.0,0.00011675,2]
[360049117,1746519043815,-500.0,0.00011675,2]
[360049118,1746519043825,-500.0,0.00011675,2]
[360049119,1746519043835,-500.0,0.00011675,2]
[360049120,1746519043844,-500.0,0.00011675,2]
[360049121,1746519043854,-500.0,0.00011675,2]
[360049122,1746519043863,-500.0,0.00011675,2]
[360049123,1746519043873,-574.87665248,0.00011675,2]
[360049124,1746519043882,-7895.85321152,0.00011677,2]
[360049125,1746519043891,-500.0,0.0001184,2]
[360049127,1746519043901,-10071.49157301,0.00012,2]
[360049128,1746519043910,-500.0,0.0001202,2]
[360049129,1746519043920,-500.0,0.0001202,2]
[360049130,1746519043930,-469.95100347,0.0001202,2]
[360049131,1746519043939,-500.0,0.0001204,2]
[360049133,1746519043948,-500.0,0.0001204,2]
[360049135,1746519043958,-500.0,0.0001204,2]
[360049137,1746519043967,-501.26609229,0.0001204,2]
[360049139,1746519043977,-500.0,0.0001204,2]
[360049141,1746519043986,-500.0,0.0001204,2]
[360049143,1746519043996,-500.0,0.0001204,2]
[360049145,1746519044006,-500.0,0.0001204,2]
[360049146,1746519044016,-420.0,0.00012819,2]
[360049148,1746519044025,-1458.29694324,0.000129,2]
[360049150,1746519044034,-226.5882376,0.00012927,2]
[360049152,1746519044043,-250.8532817,0.00013699,2]
[360049154,1746519044053,-1242.7781212,0.00013699,2]
[360049156,1746519044063,-245.11222639,0.00013699,2]
[360049157,1746519044072,-587.0,0.00014077,2]
[360049158,1746519044082,-1458.29694321,0.00014956,2]
[360049159,1746519044091,-823.0,0.00015459,2]
[360049160,1746519044100,-269.067048,0.00016,2]
[360049161,1746519044109,-1821.6349836,0.00016014,2]
[360049162,1746519044118,-306.7928572,0.00016149,2]
[360049163,1746519044128,-546.0,0.00016823,2]
[360049164,1746519044137,-708.0,0.00016823,2]
[360049165,1746519044146,-1969.19752559,0.00016823,2]
[360049166,1746519044183,-271.80247441,0.00016823,2]
[360049167,1746519044192,-260.525,0.00016823,2]
[360049168,1746519044201,-404.0,0.00016823,2]
[360049169,1746519044210,-1152.0,0.00016976,2]
[360049170,1746519044219,-1000.0,0.00017319,2]
[360049171,1746519044228,-250.0,0.00017361,2]
[360049172,1746519044236,-151.893,0.00017461,2]
[360049173,1746519044250,-150.0,0.00017461,2]
[360049174,1746519044259,-150.0,0.00017461,2]
[360049175,1746519044268,-151.208,0.00017461,2]
[360049176,1746519044277,-1000.0,0.00017499,2]
[360049177,1746519044286,-1000.0,0.00017499,2]
[360049178,1746519044295,-1000.0,0.00017519,2]
[360049179,1746519044303,-1000.0,0.00017519,2]
[360049180,1746519044313,-1000.0,0.00017519,2]
[360049181,1746519044322,-502.07788518,0.00017519,2]
[360049182,1746519044331,-1000.0,0.00017519,2]
[360049183,1746519044341,-380.58564732,0.00017519,2]
[360049184,1746519044350,-1000.0,0.00017519,2]
[360049185,1746519044359,-419.7600633,0.00017708,2]
[360049186,1746519044368,-419.76006328,0.00017756,2]
[360049187,1746519044377,-419.76006328,0.00017804,2]
[360049188,1746519044386,-500.0,0.00017808,2]
[360049189,1746519044395,-151.0,0.00017808,2]
[360049190,1746519044405,-500.0,0.00017808,2]
[360049191,1746519044414,-151.16860383,0.00017808,2]
[360049192,1746519044424,-200.14062642,0.00017808,2]
[360049193,1746519044433,-157.01861099,0.00017808,2]
[360049194,1746519044442,-500.0,0.00017808,2]
[360049195,1746519044452,-500.0,0.00017808,2]
[360049196,1746519044461,-151.0,0.00017808,2]
[360049197,1746519044471,-151.0,0.00017808,2]
[360049198,1746519044480,-500.0,0.00017808,2]
[360049199,1746519044490,-151.0,0.00017808,2]
[360049200,1746519044499,-151.0,0.00017808,2]
[360049201,1746519044508,-500.0,0.00017808,2]
[360049202,1746519044517,-500.0,0.00017808,2]
[360049203,1746519044526,-151.0,0.00017808,2]
[360049204,1746519044536,-151.62377597,0.00017808,2]
[360049205,1746519044545,-500.0,0.00017808,2]
[360049206,1746519044554,-151.0,0.00017808,2]
[360049207,1746519044563,-152.23723036,0.00017808,2]
[360049208,1746519044573,-500.0,0.00017808,2]
[360049209,1746519044583,-151.0,0.00017808,2]
[360049210,1746519044592,-151.0,0.00017808,2]
[360049211,1746519044602,-500.0,0.00017808,2]
[360049212,1746519044612,-151.0,0.00017808,2]
[360049213,1746519044621,-200.50860129,0.00017808,2]
[360049214,1746519044630,-161.02102266,0.00017808,2]
[360049215,1746519044640,-151.699195,0.00017808,2]
[360049216,1746519044650,-500.0,0.00017808,2]
[360049217,1746519044660,-151.0,0.00017808,2]
[360049218,1746519044669,-151.0,0.00017808,2]
[360049219,1746519044679,-265.07136998,0.00017808,2]
[360049220,1746519044714,-234.92863002,0.00017808,2]
[360049221,1746519044724,-151.0,0.00017808,2]
[360049222,1746519044734,-151.0,0.00017808,2]
[360049223,1746519044743,-756.98,0.00017825,3]
[360049224,1746519044753,-279.96070947,0.00017835,2]
[360049236,1746519047060,-220.03929053,0.00017835,2]
[360049237,1746519047070,-151.0,0.00017835,2]
[360049238,1746519047079,-500.0,0.00017835,2]
[360049239,1746519047088,-500.0,0.00017835,2]
[360049240,1746519047097,-500.0,0.00017835,2]
[360049241,1746519047107,-151.0,0.00017835,2]
[360049242,1746519047116,-151.0,0.00017835,2]
[360049243,1746519047125,-500.0,0.00017835,2]
[360049244,1746519047135,-151.0,0.00017835,2]
[360049245,1746519047144,-151.0,0.00017835,2]
[360049246,1746519047154,-500.0,0.00017835,2]
[360049247,1746519047164,-500.0,0.00017835,2]
[360049248,1746519047174,-272.70457196,0.00017835,2]
[360049249,1746519047184,-500.0,0.00017835,2]
[360049250,1746519047194,-151.0,0.00017835,2]
[360049251,1746519047204,-500.0,0.00017835,2]
[360049252,1746519047213,-151.0,0.00017835,2]
[360049253,1746519047223,-151.0,0.00017835,2]
[360049254,1746519047232,-500.0,0.00017835,2]
[360049255,1746519047241,-151.0,0.00017835,2]
[360049256,1746519047250,-503.60684555,0.00017835,2]
[360049257,1746519047261,-252.30923268,0.00017835,2]
[360049258,1746519047271,-500.0,0.00017835,2]
[360049259,1746519047280,-152.5354174,0.00017835,2]
[360049260,1746519047290,-419.76006328,0.00017852,2]
[360049261,1746519047299,-500.0,0.00017863,2]
[360049262,1746519047309,-151.0,0.00017863,2]
[360049263,1746519047318,-500.0,0.00017863,2]
[360049264,1746519047328,-500.0,0.00017863,2]
[360049265,1746519047337,-540.93041965,0.00017863,2]
[360049266,1746519047347,-89.19906471,0.00017863,2]
[360049281,1746519129844,-300.0,0.00011673,2]
[360049282,1746519129877,-67.52995496,0.00011674,2]
[360049283,1746519135056,-174.16373671,0.00011674,2]
[360049284,1746519139080,-17.70373411,0.00011674,2]
[360049285,1746519139116,-199.28906265,0.00011674,2]
[360049286,1746519143345,-198.17130089,0.00011674,2]
[360049287,1746519147638,-102.53963646,0.00011674,2]
[360049288,1746519147672,-158.07293301,0.00011674,2]
[360049289,1746519147707,-44.07931229,0.00011674,2]
[360049290,1746519152467,-300.0,0.00011674,2]
[360049291,1746519155812,-155.0,0.00011674,2]
[360049292,1746519159425,-0.92068771,0.00011674,2]
[360049293,1746519159456,-455.54442275,0.00011674,2]
[360049294,1746519163065,-44.45557725,0.00011674,2]
[360049295,1746519163094,-219.20304737,0.00011674,2]
[360049298,1746519411456,-151.0,0.00011573,2]
[360049299,1746519427400,-3.87772921,0.00011573,2]
[360049300,1746519427422,-159.54356003,0.0001167,2]
[360049302,1746519434202,-140.45643997,0.0001167,2]
[360049303,1746519434225,-32.61648313,0.00011671,2]
[360049304,1746519440406,-265.29220551,0.00011671,2]
[360049306,1746519444660,-202.09131136,0.00011671,2]
[360049307,1746519444682,-9.28025187,0.00011671,2]
[360049308,1746519446855,-204.87321133,0.00011671,2]
[360049309,1746519446878,-6.4983519,0.00011671,2]
[360049311,1746519452969,-189.27317434,0.00011671,2]
[360049312,1746519459146,-226.55478246,0.00011671,2]
[360049313,1746519459168,-187.68981161,0.00011671,2]
[360049314,1746519463641,-224.97141973,0.00011671,2]
[360049315,1746519470778,-87.33876866,0.00011671,2]
[360049316,1746519470810,-123.71525743,0.00011671,2]
[360049317,1746519475581,-250.0,0.00011671,2]
[360049318,1746519480367,-126.28474257,0.00011671,2]
[360049319,1746519480397,-60.81414787,0.00011671,2]
[360049320,1746519487053,-206.61,0.0001167,2]
[360049321,1746519491758,-93.39,0.0001167,2]
[360049322,1746519491790,-89.31779449,0.00011671,2]
[360049323,1746519495776,-349.86805764,0.00011671,2]
[360049324,1746519495812,-56.91079709,0.00011671,2]
[360049325,1746519499866,-176.00656,0.00011671,2]
[360049326,1746519503100,-212.70036538,0.0001167,2]
[360049327,1746519504292,-212.70036538,0.0001167,2]
[360049328,1746519508091,-300.0,0.0001167,2]
[360049330,1746519512447,-152.0,0.0001167,2]
[360049331,1746519516453,-198.51022503,0.0001167,2]
[360049335,1746519562021,-209.68169623,0.00011669,2]
[360049336,1746519566384,-90.31830377,0.00011669,2]
[360049337,1746519566407,-347.46066941,0.0001167,2]
[360049338,1746519576906,-158.74837362,0.0001167,2]
[360049339,1746519580645,-246.74154091,0.0001167,2]
[360049340,1746519585670,-202.32513648,0.0001167,2]
[360049341,1746519590515,-178.06841192,0.00011669,2]
[360049342,1746519590538,-57.84893518,0.00011669,2]
[360049343,1746519606359,-250.0,0.00011658,2]
[360049344,1746519606385,-100.88234659,0.00011669,2]
[360049345,1746519621401,-65.19860474,0.00011669,2]
[360049346,1746519621424,-230.20967933,0.00011669,2]
[360049347,1746519625820,-192.14655822,0.00011669,2]
[360049348,1746519628646,-77.64376245,0.00011669,2]
[360049349,1746519628676,-222.35623755,0.00011669,2]
[360049350,1746519633565,-54.60587049,0.00011669,2]
[360049351,1746519633601,-97.39412951,0.00011669,2]
[360049352,1746519637505,-151.0,0.00011669,2]
[360049353,1746519640302,-220.37099601,0.00011669,2]
[360049355,1746519681674,-300.0,0.00011668,2]
[360049356,1746519681710,-31.23487448,0.00011669,2]
[360049357,1746519681744,-300.9627232,0.00011669,2]
[360049365,1746519696747,-500.0,0.000117,2]
[360049366,1746519697585,191.07155604,0.00011669,2]
[360049367,1746519711295,-412.95477337,0.00011668,2]
[360049368,1746519716384,-87.04522663,0.00011668,2]
[360049369,1746519716416,-168.46761223,0.00011668,2]
[360049370,1746519720121,-165.59748559,0.00011668,2]
[360049371,1746519723188,-153.11813843,0.00011668,2]
[360049372,1746519727104,-12.81676375,0.00011668,2]
[360049373,1746519727140,-330.69572747,0.00011668,2]
[360049374,1746519735606,-156.48750878,0.00011668,2]
[360049404,1746519777013,-217.4484615,0.00011668,2]
[360049405,1746519777035,-177.40924886,0.00011668,2]
[360049406,1746519786916,-300.0,0.00011668,2]
[360049407,1746519786940,-4.09659381,0.00011668,2]
[360049408,1746519792575,-259.95929438,0.00011668,2]
[360049410,1746519795930,-173.18354271,0.00011668,2]
[360049411,1746519795952,-126.81645729,0.00011668,2]
[360049412,1746519799384,-93.74656353,0.00011668,2]
[360049413,1746519799408,-146.29414209,0.00011668,2]
[360049415,1746519805170,-64.759884,0.00011668,2]
[360049416,1746519805192,-158.59444123,0.00011668,2]
[360049418,1746519807382,20030.5,0.00011,2]
[360049419,1746519808782,-212.81580586,0.00011,2]
[360049420,1746519809798,-212.81580586,0.00011,2]
[360049422,1746519814775,-240.2197683,0.00011,2]
[360049423,1746519817659,-436.17013109,0.00011,2]
[360049424,1746519820443,-294.32854824,0.00011,2]
[360049427,1746519903660,-1479.36187635,0.00010999,2]
[360049430,1746519915475,-274.47783813,0.00010999,2]
[360049432,1746519946130,-1324.6763265,0.00010999,2]
[360049433,1746519969575,-253.16629809,0.00010998,2]
[360049434,1746519979757,-46.83370191,0.00010998,2]
[360049435,1746519979781,-340.86184519,0.00010999,2]
[360049436,1746519998121,-302.8139662,0.00010998,2]
[360049438,1746520005678,-24.41908053,0.00010998,2]
[360049439,1746520005700,-179.80967781,0.00010998,2]
[360049440,1746520005722,-98.58520786,0.00010998,2]
[360049441,1746520011950,-219.96743245,0.00010998,2]
[360049442,1746520011974,-82.84653375,0.00010998,2]
[360049443,1746520016287,-199.02021691,0.00010998,2]
[360049444,1746520020677,-174.53594813,0.00010998,2]
[360049445,1746520035120,-43.59730121,0.00010998,2]
[360049446,1746520035143,-130.93864692,0.00010998,2]
[360049448,1746520056410,-41.58913198,0.00010998,2]
[360049449,1746520056432,-313.73454364,0.00010998,2]
[360049450,1746520056464,-117.95386125,0.00010998,2]
[360049453,1746520066670,-382.04613875,0.00010998,2]
[360049454,1746520066701,-500.0,0.00010998,2]
[360049455,1746520066731,-500.0,0.00010998,2]
[360049456,1746520066761,-500.0,0.00010998,2]
[360049457,1746520066791,-500.0,0.00010998,2]
[360049458,1746520066822,-500.0,0.00010998,2]
[360049459,1746520066854,-500.0,0.00010998,2]
[360049460,1746520066883,-500.0,0.00010998,2]
[360049461,1746520066910,-500.0,0.00010998,2]
[360049462,1746520066941,-319.42266587,0.00010998,2]
[360049463,1746520066968,-500.0,0.00010998,2]
[360049464,1746520066998,-500.0,0.00010998,2]
[360049465,1746520067030,-500.0,0.00010998,2]
[360049466,1746520067052,-500.0,0.00010998,2]
[360049467,1746520067073,-500.0,0.00010998,2]
[360049468,1746520067094,-431.72706987,0.00010998,2]
[360049469,1746520067115,-635.11841024,0.00010998,2]
[360049470,1746520067146,-500.0,0.00010998,2]
[360049471,1746520067178,-610.17476781,0.00010998,2]
[360049472,1746520067200,-500.0,0.00010998,2]
[360049473,1746520067222,-500.0,0.00010998,2]
[360049474,1746520067244,-500.0,0.00010998,2]
[360049475,1746520067268,-500.0,0.00010998,2]
[360049476,1746520067289,-500.0,0.00010998,2]
[360049477,1746520067321,-500.0,0.00010998,2]
[360049478,1746520067351,-500.0,0.00010998,2]
[360049479,1746520067381,-500.0,0.00010998,2]
[360049480,1746520067409,-339.76904934,0.00010998,2]
[360049481,1746520067429,-500.0,0.00010998,2]
[360049483,1746520067450,-500.0,0.00010998,2]
[360049484,1746520067481,-500.0,0.00010998,2]
[360049485,1746520067511,-500.0,0.00010998,2]
[360049486,1746520067543,-293.19610345,0.00010998,2]
[360049487,1746520067563,-3988.54579467,0.00010999,2]
[360049488,1746520083117,-170.46357067,0.00010999,2]
[360049491,1746520086681,-104.01426746,0.00010999,2]
[360049492,1746520086703,-46.98573254,0.00010999,2]
[360049493,1746520089939,-152.75289145,0.00010999,2]
[360049496,1746520122073,151.000001,0.0002,120]
[360049497,1746520139332,-100.26137601,0.00010999,2]
[360049498,1746520139354,-52.49151544,0.00010999,2]
[360049500,1746520146004,-176.57161727,0.00010999,2]
[360049501,1746520146026,-123.42838273,0.00010999,2]
[360049502,1746520148119,-212.21659498,0.00010999,2]
[360049503,1746520151479,-199.72706408,0.00010999,2]
[360049504,1746520154155,-37.61480642,0.00010999,2]
[360049505,1746520154187,-190.0874398,0.00010999,2]
[360049506,1746520161232,-20000.0,0.00011,2]
[360049507,1746520174569,-196.46845104,0.00011,2]
[360049508,1746520181913,-240.48020269,0.00011,2]
[360049509,1746520184156,-227.70224622,0.00011,2]
[360049510,1746520197415,-209.4904867,0.00011,2]
[360049511,1746520201849,-164.4895309,0.00011,2]
[360049512,1746520215689,-151.0,0.00010993,2]
[360049513,1746520215710,-300.0,0.00010999,2]
[360049514,1746520215731,-300.0,0.00010999,2]
[360049515,1746520215752,-1200.0,0.00010999,2]
[360049516,1746520215773,-13049.0,0.00011,2]
[360049560,1746520238097,-500.0,0.00010999,2]
[360049562,1746520238107,-500.0,0.00010999,2]
[360049563,1746520238116,-500.0,0.00010999,2]
[360049564,1746520238126,-500.0,0.00010999,2]
[360049565,1746520238134,-500.0,0.00010999,2]
[360049566,1746520238144,-500.0,0.00010999,2]
[360049567,1746520238153,-500.0,0.00010999,2]
[360049568,1746520238165,-500.0,0.00010999,2]
[360049569,1746520238174,-500.0,0.00010999,2]
[360049570,1746520238183,-500.0,0.00010999,2]
[360049571,1746520238193,-500.0,0.00010999,2]
[360049572,1746520238202,-500.0,0.00010999,2]
[360049573,1746520238211,-500.0,0.00010999,2]
[360049574,1746520238220,-500.0,0.00010999,2]
[360049575,1746520238229,-500.0,0.00010999,2]
[360049576,1746520238238,-500.0,0.00010999,2]
[360049577,1746520238247,-500.0,0.00010999,2]
[360049578,1746520238256,-500.0,0.00010999,2]
[360049579,1746520238265,-500.0,0.00010999,2]
[360049580,1746520238274,-500.0,0.00010999,2]
[360049581,1746520238283,-500.0,0.00010999,2]
[360049582,1746520238292,-500.0,0.00010999,2]
[360049583,1746520238301,-500.0,0.00010999,2]
[360049584,1746520238310,-500.0,0.00010999,2]
[360049585,1746520238319,-500.0,0.00010999,2]
[360049586,1746520238328,-500.0,0.00010999,2]
[360049587,1746520238337,-500.0,0.00010999,2]
[360049588,1746520238346,-500.0,0.00010999,2]
[360049589,1746520238355,-500.0,0.00010999,2]
[360049590,1746520238364,-500.0,0.00010999,2]
[360049591,1746520238373,-500.0,0.00010999,2]
[360049592,1746520238382,-500.0,0.00010999,2]
[360049593,1746520238391,-153.99371154,0.00010999,2]
[360049594,1746520238400,-500.0,0.00010999,2]
[360049595,1746520238410,-500.0,0.00010999,2]
[360049596,1746520238419,-500.0,0.00010999,2]
[360049597,1746520238428,-500.0,0.00010999,2]
[360049598,1746520238437,-500.0,0.00010999,2]
[360049599,1746520238446,-500.0,0.00010999,2]
[360049600,1746520238455,-500.0,0.00010999,2]
[360049601,1746520238464,-500.0,0.00010999,2]
[360049602,1746520238473,-500.0,0.00010999,2]
[360049603,1746520238482,-500.0,0.00010999,2]
[360049604,1746520238491,-500.0,0.00010999,2]
[360049605,1746520238500,-500.0,0.00010999,2]
[360049606,1746520238509,-79069.69218346,0.00011,2]
[360049607,1746520238518,-2725.96144476,0.00011563,2]
[360049608,1746520238527,-1504.02386931,0.00011665,2]
[360049609,1746520238537,-500.0,0.00011925,2]
[360049610,1746520238546,-500.0,0.00011925,2]
[360049611,1746520238555,-500.0,0.00011925,2]
[360049612,1746520238564,-500.0,0.00011925,2]
[360049613,1746520238572,-500.0,0.00011925,2]
[360049614,1746520238581,-500.0,0.00011925,2]
[360049615,1746520238591,-500.0,0.00011925,2]
[360049616,1746520238600,-500.0,0.00011925,2]
[360049617,1746520238609,-165.61349575,0.00011925,2]
[360049618,1746520238618,-420.0,0.00012087,2]
[360049619,1746520238627,-1680.0,0.00012099,2]
[360049620,1746520238637,-500.0,0.00012199,2]
[360049621,1746520238646,-259.59375836,0.00012362,2]
[360049622,1746520238654,-500.0,0.0001285,2]
[360049623,1746520238665,-500.0,0.0001285,2]
[360049624,1746520238675,-500.0,0.0001285,2]
[360049625,1746520238684,-500.0,0.0001285,2]
[360049626,1746520238693,-425.60220786,0.0001285,2]
[360049627,1746520238702,-500.0,0.0001285,2]
[360049628,1746520238711,-500.0,0.0001285,2]
[360049629,1746520238720,-500.0,0.0001285,2]
[360049630,1746520238730,-500.0,0.0001285,2]
[360049631,1746520238740,-500.0,0.0001285,2]
[360049632,1746520238749,-446.14574839,0.0001285,2]
[360049633,1746520238758,-500.0,0.0001285,2]
[360049634,1746520238767,-500.0,0.0001285,2]
[360049635,1746520238777,-500.0,0.0001285,2]
[360049636,1746520238786,-500.0,0.0001285,2]
[360049637,1746520238796,-500.0,0.0001285,2]
[360049638,1746520238805,-500.0,0.0001285,2]
[360049639,1746520238814,-1449.69653061,0.000129,2]
[360049640,1746520238823,-2725.96144474,0.00013147,2]
[360049641,1746520238832,-587.0,0.00013282,2]
[360049642,1746520238842,-801.0,0.00013309,2]
[360049643,1746520238851,-412.133561,0.00013699,2]
[360049644,1746520238860,-503.229591,0.00014511,2]
[360049645,1746520238870,-674.0,0.00014595,2]
[360049646,1746520238879,-151.0,0.000147,2]
[360049647,1746520238888,-50000.0,0.000147,2]
[360049648,1746520238898,-2725.96144474,0.00014732,2]
[360049649,1746520238908,-24900.0,0.00014744,2]
[360049650,1746520238917,-1449.69653056,0.00014821,2]
[360049651,1746520238926,-3813.0,0.00015,2]
[360049652,1746520238936,-291.4200461,0.00015095,2]
[360049653,1746520238946,-250.83207573,0.00015222,2]
[360049654,1746520238955,-1310.9258383,0.00015233,2]
[360049655,1746520238964,-151.0,0.000154,2]
[360049656,1746520238973,-151.0,0.000162,2]
[360049657,1746520238983,-2725.96144474,0.00016316,2]
[360049658,1746520238996,-546.0,0.00016671,2]
[360049659,1746520239006,-151.0,0.000169,2]
[360049660,1746520239015,-165.16602018,0.00017404,2]
[360049661,1746520239025,-1000.0,0.00017404,2]
[360049662,1746520239034,-1000.0,0.00017404,2]